[Event "Titled Tuesday Blitz June 28 Early 2022"]
[White "Preotu, Razvan"]
[Black "Malyi, Viacheslav"]
[WhiteFideId "2613280"]
[BlackFideId "14123983"]
[WhiteElo "2407"]
[BlackElo "2270"]
[Result "1/2-1/2"]
[Round "07"]
[TimeControl "180+1"]
[Date "2022.06.28"]
[WhiteClock "0:00:01"]
[BlackClock "0:00:12"]

1. e4 {[%clk 0:03:00]}  e5 {[%clk 0:02:59]} 2. Nf3 {[%clk 0:03:00]}  Nc6 {[%clk 0:02:58]} 3. Bc4 {[%clk 0:03:00]}  Bc5 {[%clk 0:02:58]} 4. c3 {[%clk 0:03:00]}  Nf6 {[%clk 0:02:57]} 5. d3 {[%clk 0:03:00]}  d6 {[%clk 0:02:58]} 6. O-O {[%clk 0:03:00]}  a6 {[%clk 0:02:58]} 7. Re1 {[%clk 0:03:00]}  Ba7 {[%clk 0:02:59]} 8. a4 {[%clk 0:03:00]}  O-O {[%clk 0:02:59]} 9. h3 {[%clk 0:02:59]}  Ne7 {[%clk 0:02:59]} 10. d4 {[%clk 0:02:48]}  Ng6 {[%clk 0:03:00]} 11. Bd3 {[%clk 0:02:45]}  Be6 {[%clk 0:02:57]} 12. Be3 {[%clk 0:02:41]}  Qd7 {[%clk 0:02:57]} 13. d5 {[%clk 0:02:37]}  Bxh3 {[%clk 0:02:55]} 14. gxh3 {[%clk 0:02:35]}  Qxh3 {[%clk 0:02:56]} 15. Nh2 {[%clk 0:02:07]}  Nf4 {[%clk 0:02:43]} 16. Bf1 {[%clk 0:02:00]}  Qh4 {[%clk 0:02:33]} 17. Bxa7 {[%clk 0:01:52]}  Rxa7 {[%clk 0:02:32]} 18. Qf3 {[%clk 0:01:41]}  g5 {[%clk 0:02:26]} 19. Qg3 {[%clk 0:01:38]}  Qh6 {[%clk 0:02:18]} 20. Ng4 {[%clk 0:01:12]}  Qg6 {[%clk 0:02:10]} 21. Nxf6+ {[%clk 0:01:11]}  Qxf6 {[%clk 0:02:11]} 22. Nd2 {[%clk 0:01:10]}  Kh8 {[%clk 0:02:05]} 23. Nc4 {[%clk 0:01:10]}  h5 {[%clk 0:01:58]} 24. Ne3 {[%clk 0:01:10]}  g4 {[%clk 0:01:55]} 25. Nf5 {[%clk 0:01:09]}  Rg8 {[%clk 0:01:55]} 26. a5 {[%clk 0:01:00]}  Rg5 {[%clk 0:01:55]} 27. Nh4 {[%clk 0:00:37]}  Ra8 {[%clk 0:01:51]} 28. Ra4 {[%clk 0:00:37]}  Rag8 {[%clk 0:01:51]} 29. Rb4 {[%clk 0:00:37]}  Nh3+ {[%clk 0:01:44]} 30. Kg2 {[%clk 0:00:37]}  Nf4+ {[%clk 0:01:40]} 31. Kh2 {[%clk 0:00:36]}  Ng6 {[%clk 0:01:32]} 32. Nxg6+ {[%clk 0:00:33]}  Qxg6 {[%clk 0:01:25]} 33. Qh4 {[%clk 0:00:24]}  g3+ {[%clk 0:01:25]} 34. fxg3 {[%clk 0:00:24]}  Rxg3 {[%clk 0:01:26]} 35. Re2 {[%clk 0:00:22]}  Rg4 {[%clk 0:01:20]} 36. Qe1 {[%clk 0:00:14]}  Qg5 {[%clk 0:01:16]} 37. Bh3 {[%clk 0:00:11]}  Rg1 {[%clk 0:01:07]} 38. Qf2 {[%clk 0:00:09]}  Rg3 {[%clk 0:01:01]} 39. Rxb7 {[%clk 0:00:03]}  Qh4 {[%clk 0:01:00]} 40. Qf1 {[%clk 0:00:02]}  Rg1 {[%clk 0:00:40]} 41. Qf2 {[%clk 0:00:03]}  R8g3 {[%clk 0:00:32]} 42. Qf5 {[%clk 0:00:03]}  Rg8 {[%clk 0:00:15]} 43. Qf2 {[%clk 0:00:01]}  R8g3 {[%clk 0:00:14]} 44. Qf5 {[%clk 0:00:01]}  Rg8 {[%clk 0:00:12]} 45. Qf2 {[%clk 0:00:01]} 1/2-1/2


[Site "https://www.chess.com"]

[Event "Titled Tuesday Blitz June 28 Early 2022"]
[White "Prieto Aranguren, Alain"]
[Black "Marin Ramirez, Gerardo"]
[WhiteFideId "2268906"]
[BlackFideId "3901068"]
[WhiteElo "2224"]
[BlackElo "1920"]
[Result "1-0"]
[Round "07"]
[TimeControl "180+1"]
[Date "2022.06.28"]
[WhiteClock "0:00:30"]
[BlackClock "0:00:01"]

1. d4 {[%clk 0:02:59]}  d5 {[%clk 0:02:59]} 2. c3 {[%clk 0:02:58]}  c6 {[%clk 0:03:00]} 3. Bf4 {[%clk 0:02:56]}  Nf6 {[%clk 0:03:00]} 4. Qb3 {[%clk 0:02:54]}  Bf5 {[%clk 0:03:00]} 5. Qxb7 {[%clk 0:02:54]}  Qb6 {[%clk 0:03:01]} 6. Qxb6 {[%clk 0:02:38]}  axb6 {[%clk 0:03:02]} 7. Nd2 {[%clk 0:02:37]}  Nbd7 {[%clk 0:02:56]} 8. e3 {[%clk 0:02:37]}  e6 {[%clk 0:02:56]} 9. Ne2 {[%clk 0:02:34]}  Be7 {[%clk 0:02:56]} 10. Nc1 {[%clk 0:02:34]}  c5 {[%clk 0:02:52]} 11. Bb5 {[%clk 0:02:33]}  h6 {[%clk 0:02:47]} 12. O-O {[%clk 0:02:30]}  O-O {[%clk 0:02:45]} 13. Nf3 {[%clk 0:02:29]}  Rfc8 {[%clk 0:02:44]} 14. a4 {[%clk 0:02:26]}  Nb8 {[%clk 0:02:31]} 15. Nd3 {[%clk 0:02:25]}  Nc6 {[%clk 0:02:31]} 16. Nde5 {[%clk 0:02:24]}  Na5 {[%clk 0:02:26]} 17. Rae1 {[%clk 0:02:10]}  cxd4 {[%clk 0:02:17]} 18. exd4 {[%clk 0:02:09]}  Nc4 {[%clk 0:02:17]} 19. Nxc4 {[%clk 0:02:08]}  dxc4 {[%clk 0:02:16]} 20. Ra1 {[%clk 0:02:05]}  Bd3 {[%clk 0:02:14]} 21. Rfe1 {[%clk 0:02:04]}  Nd5 {[%clk 0:02:13]} 22. Be5 {[%clk 0:01:59]}  Ra7 {[%clk 0:01:56]} 23. h3 {[%clk 0:01:59]}  f6 {[%clk 0:01:54]} 24. Bh2 {[%clk 0:01:57]}  Kf7 {[%clk 0:01:54]} 25. Red1 {[%clk 0:01:51]}  g5 {[%clk 0:01:48]} 26. Ne1 {[%clk 0:01:50]}  Bg6 {[%clk 0:01:45]} 27. Rd2 {[%clk 0:01:48]}  h5 {[%clk 0:01:44]} 28. Nc2 {[%clk 0:01:46]}  g4 {[%clk 0:01:20]} 29. hxg4 {[%clk 0:01:45]}  hxg4 {[%clk 0:01:21]} 30. Ne3 {[%clk 0:01:45]}  Nxe3 {[%clk 0:01:20]} 31. fxe3 {[%clk 0:01:46]}  Be4 {[%clk 0:01:20]} 32. Kf2 {[%clk 0:01:45]}  f5 {[%clk 0:01:19]} 33. Be5 {[%clk 0:01:43]}  Kg6 {[%clk 0:01:12]} 34. Rh1 {[%clk 0:01:41]}  Bg5 {[%clk 0:01:12]} 35. Rdd1 {[%clk 0:01:33]}  Bd5 {[%clk 0:01:11]} 36. Rh2 {[%clk 0:01:31]}  Rh7 {[%clk 0:01:09]} 37. Rdh1 {[%clk 0:01:29]}  Rxh2 {[%clk 0:01:07]} 38. Rxh2 {[%clk 0:01:29]}  Bh6 {[%clk 0:01:04]} 39. Rh1 {[%clk 0:01:25]}  Bg5 {[%clk 0:00:51]} 40. Ra1 {[%clk 0:01:25]}  Bd8 {[%clk 0:00:48]} 41. Rh1 {[%clk 0:01:18]}  Bg5 {[%clk 0:00:41]} 42. Bf4 {[%clk 0:01:15]}  Bxf4 {[%clk 0:00:35]} 43. exf4 {[%clk 0:01:16]}  Kg7 {[%clk 0:00:33]} 44. Kg3 {[%clk 0:01:10]}  Ra8 {[%clk 0:00:29]} 45. Rh2 {[%clk 0:01:08]}  Rc8 {[%clk 0:00:28]} 46. Rh1 {[%clk 0:01:07]}  Ra8 {[%clk 0:00:28]} 47. Rg1 {[%clk 0:01:07]}  Ra7 {[%clk 0:00:27]} 48. Kh4 {[%clk 0:01:07]}  Kg6 {[%clk 0:00:27]} 49. Kg3 {[%clk 0:01:06]}  Rh7 {[%clk 0:00:26]} 50. Ra1 {[%clk 0:01:04]}  Ra7 {[%clk 0:00:25]} 51. Kf2 {[%clk 0:01:04]}  Ra8 {[%clk 0:00:23]} 52. Ke3 {[%clk 0:00:59]}  Rh8 {[%clk 0:00:19]} 53. Rg1 {[%clk 0:00:55]}  Rh2 {[%clk 0:00:15]} 54. Kf2 {[%clk 0:00:54]}  Rh8 {[%clk 0:00:14]} 55. Kg3 {[%clk 0:00:54]}  Ra8 {[%clk 0:00:14]} 56. Rh1 {[%clk 0:00:51]}  Rc8 {[%clk 0:00:14]} 57. Rh2 {[%clk 0:00:51]}  Ra8 {[%clk 0:00:13]} 58. Kf2 {[%clk 0:00:51]}  Rc8 {[%clk 0:00:13]} 59. g3 {[%clk 0:00:51]}  Kg7 {[%clk 0:00:12]} 60. Ke2 {[%clk 0:00:51]}  Ra8 {[%clk 0:00:12]} 61. Kd2 {[%clk 0:00:51]}  Ra7 {[%clk 0:00:12]} 62. Kc1 {[%clk 0:00:51]}  Ra8 {[%clk 0:00:11]} 63. Kb1 {[%clk 0:00:51]}  Ra7 {[%clk 0:00:11]} 64. Ka2 {[%clk 0:00:51]}  Ra8 {[%clk 0:00:11]} 65. Ka3 {[%clk 0:00:51]}  Ra7 {[%clk 0:00:12]} 66. Kb4 {[%clk 0:00:52]}  Ra8 {[%clk 0:00:12]} 67. Rf2 {[%clk 0:00:51]}  Rc8 {[%clk 0:00:11]} 68. Rf1 {[%clk 0:00:48]}  Rc7 {[%clk 0:00:11]} 69. Ra1 {[%clk 0:00:48]}  Rc8 {[%clk 0:00:12]} 70. a5 {[%clk 0:00:48]}  bxa5+ {[%clk 0:00:12]} 71. Rxa5 {[%clk 0:00:48]}  Rh8 {[%clk 0:00:12]} 72. Bxc4 {[%clk 0:00:46]}  Bxc4 {[%clk 0:00:09]} 73. Kxc4 {[%clk 0:00:46]}  Rh3 {[%clk 0:00:09]} 74. b4 {[%clk 0:00:45]}  Rxg3 {[%clk 0:00:09]} 75. b5 {[%clk 0:00:46]}  Rg1 {[%clk 0:00:08]} 76. b6 {[%clk 0:00:45]}  g3 {[%clk 0:00:09]} 77. b7 {[%clk 0:00:45]}  Rb1 {[%clk 0:00:08]} 78. Rb5 {[%clk 0:00:42]}  Rxb5 {[%clk 0:00:08]} 79. Kxb5 {[%clk 0:00:42]}  g2 {[%clk 0:00:09]} 80. b8=Q {[%clk 0:00:43]}  g1=Q {[%clk 0:00:10]} 81. Qc7+ {[%clk 0:00:42]}  Kf6 {[%clk 0:00:08]} 82. Qd8+ {[%clk 0:00:41]}  Kf7 {[%clk 0:00:08]} 83. Qd7+ {[%clk 0:00:40]}  Kf6 {[%clk 0:00:08]} 84. Qe8 {[%clk 0:00:37]}  Qb1+ {[%clk 0:00:06]} 85. Kc6 {[%clk 0:00:35]}  Qb3 {[%clk 0:00:05]} 86. Qh8+ {[%clk 0:00:32]}  Kg6 {[%clk 0:00:05]} 87. Qg8+ {[%clk 0:00:31]}  Kf6 {[%clk 0:00:02]} 88. Qf8+ {[%clk 0:00:32]}  Kg6 {[%clk 0:00:01]} 89. Kd6 {[%clk 0:00:30]} 1-0


[Site "https://www.chess.com"]

[Event "Titled Tuesday Blitz June 28 Early 2022"]
[White "Rios Escobar, Adan"]
[Black "Navarrete Mendez, Gonzalo Alberto"]
[WhiteFideId "3403645"]
[BlackFideId "5106850"]
[WhiteElo "2472"]
[BlackElo "2261"]
[Result "0-1"]
[Round "07"]
[TimeControl "180+1"]
[Date "2022.06.28"]
[WhiteClock "0:00:39"]
[BlackClock "0:02:04"]

1. d4 {[%clk 0:02:57]}  d5 {[%clk 0:02:59]} 2. Nf3 {[%clk 0:02:57]}  Nf6 {[%clk 0:02:59]} 3. g3 {[%clk 0:02:57]}  c5 {[%clk 0:02:58]} 4. Bg2 {[%clk 0:02:56]}  cxd4 {[%clk 0:02:57]} 5. O-O {[%clk 0:02:55]}  h6 {[%clk 0:02:56]} 6. b3 {[%clk 0:02:54]}  Nc6 {[%clk 0:02:45]} 7. Nxd4 {[%clk 0:02:52]}  e5 {[%clk 0:02:45]} 8. Nxc6 {[%clk 0:02:52]}  bxc6 {[%clk 0:02:46]} 9. c4 {[%clk 0:02:48]}  e4 {[%clk 0:02:40]} 10. cxd5 {[%clk 0:02:28]}  cxd5 {[%clk 0:02:41]} 11. e3 {[%clk 0:02:28]}  Be6 {[%clk 0:02:40]} 12. Nc3 {[%clk 0:02:25]}  h5 {[%clk 0:02:39]} 13. Bb2 {[%clk 0:02:23]}  h4 {[%clk 0:02:39]} 14. Re1 {[%clk 0:02:17]}  hxg3 {[%clk 0:02:39]} 15. hxg3 {[%clk 0:02:16]}  Qd7 {[%clk 0:02:22]} 16. Rc1 {[%clk 0:02:13]}  Bh3 {[%clk 0:02:19]} 17. Bh1 {[%clk 0:02:13]}  Bg4 {[%clk 0:02:19]} 18. Re2 {[%clk 0:01:48]}  Rxh1+ {[%clk 0:02:15]} 19. Kxh1 {[%clk 0:01:47]}  Bf3+ {[%clk 0:02:15]} 20. Kh2 {[%clk 0:01:45]}  Qg4 {[%clk 0:02:06]} 21. Qf1 {[%clk 0:00:41]}  Qh5+ {[%clk 0:02:04]} 22. Qh3 {[%clk 0:00:41]}  Ng4+ {[%clk 0:02:05]} 23. Kg1 {[%clk 0:00:40]}  Qxh3 {[%clk 0:02:05]} 24. Nxd5 {[%clk 0:00:39]}  Qg2# {[%clk 0:02:04]} 0-1


[Site "https://www.chess.com"]

[Event "Titled Tuesday Blitz June 28 Early 2022"]
[White "Rosen, Eric"]
[Black "Kucuksari, Kaan"]
[WhiteFideId "2032562"]
[BlackFideId "6380166"]
[WhiteElo "2362"]
[BlackElo "2305"]
[Result "1-0"]
[Round "07"]
[TimeControl "180+1"]
[Date "2022.06.28"]
[WhiteClock "0:00:14"]
[BlackClock "0:00:06"]

1. d4 {[%clk 0:02:59]}  Nf6 {[%clk 0:02:58]} 2. Bf4 {[%clk 0:02:58]}  d5 {[%clk 0:02:56]} 3. e3 {[%clk 0:02:59]}  e6 {[%clk 0:02:56]} 4. Nf3 {[%clk 0:02:59]}  b6 {[%clk 0:02:55]} 5. c3 {[%clk 0:02:57]}  Bb7 {[%clk 0:02:55]} 6. Nbd2 {[%clk 0:02:55]}  Bd6 {[%clk 0:02:55]} 7. Ne5 {[%clk 0:02:55]}  Nfd7 {[%clk 0:02:51]} 8. Bd3 {[%clk 0:02:50]}  Nxe5 {[%clk 0:02:50]} 9. dxe5 {[%clk 0:02:50]}  Be7 {[%clk 0:02:50]} 10. h4 {[%clk 0:02:47]}  h5 {[%clk 0:02:48]} 11. Qf3 {[%clk 0:02:43]}  Nd7 {[%clk 0:02:47]} 12. Qg3 {[%clk 0:02:43]}  g6 {[%clk 0:02:41]} 13. O-O-O {[%clk 0:02:43]}  Nc5 {[%clk 0:02:39]} 14. Bc2 {[%clk 0:02:44]}  Qd7 {[%clk 0:02:34]} 15. f3 {[%clk 0:02:37]}  O-O-O {[%clk 0:02:32]} 16. Kb1 {[%clk 0:02:34]}  Qb5 {[%clk 0:02:30]} 17. Nb3 {[%clk 0:02:34]}  Na4 {[%clk 0:02:24]} 18. Bd3 {[%clk 0:02:29]}  Qe8 {[%clk 0:02:22]} 19. Nd4 {[%clk 0:02:20]}  Kb8 {[%clk 0:02:22]} 20. Bb5 {[%clk 0:02:19]}  Nxc3+ {[%clk 0:02:16]} 21. bxc3 {[%clk 0:02:20]}  c6 {[%clk 0:02:17]} 22. Bd3 {[%clk 0:02:15]}  a6 {[%clk 0:02:06]} 23. Nb3 {[%clk 0:01:33]}  c5 {[%clk 0:02:03]} 24. Bc2 {[%clk 0:01:31]}  a5 {[%clk 0:01:59]} 25. Bg5 {[%clk 0:01:16]}  a4 {[%clk 0:01:58]} 26. Nd2 {[%clk 0:01:16]}  Qb5+ {[%clk 0:01:53]} 27. Ka1 {[%clk 0:01:14]}  Bxg5 {[%clk 0:01:50]} 28. hxg5 {[%clk 0:01:15]}  Qa5 {[%clk 0:01:49]} 29. Nb1 {[%clk 0:01:04]}  d4 {[%clk 0:01:28]} 30. exd4 {[%clk 0:00:58]}  cxd4 {[%clk 0:01:29]} 31. Rxd4 {[%clk 0:00:57]}  Rxd4 {[%clk 0:01:28]} 32. cxd4 {[%clk 0:00:58]}  Rc8 {[%clk 0:01:29]} 33. Qf2 {[%clk 0:00:55]}  a3 {[%clk 0:01:11]} 34. Be4 {[%clk 0:00:50]}  Rc4 {[%clk 0:01:05]} 35. Bxb7 {[%clk 0:00:44]}  Kxb7 {[%clk 0:01:04]} 36. Rd1 {[%clk 0:00:43]}  Rb4 {[%clk 0:01:00]} 37. Qe3 {[%clk 0:00:33]}  Qa4 {[%clk 0:00:27]} 38. Rc1 {[%clk 0:00:24]}  Rxd4 {[%clk 0:00:24]} 39. Qc3 {[%clk 0:00:24]}  Qd7 {[%clk 0:00:15]} 40. Nxa3 {[%clk 0:00:23]}  Rd3 {[%clk 0:00:14]} 41. Qb4 {[%clk 0:00:22]}  Rd4 {[%clk 0:00:12]} 42. Rc7+ {[%clk 0:00:13]}  Qxc7 {[%clk 0:00:06]} 43. Qxd4 {[%clk 0:00:13]}  Qc1+ {[%clk 0:00:07]} 44. Nb1 {[%clk 0:00:14]}  h4 {[%clk 0:00:06]} 45. Qd7+ {[%clk 0:00:13]}  Ka6 {[%clk 0:00:06]} 46. Qa4+ {[%clk 0:00:14]}  Kb7 {[%clk 0:00:06]} 47. Qxh4 {[%clk 0:00:14]}  Qe3 {[%clk 0:00:06]} 48. Qe4+ {[%clk 0:00:14]}  Qxe4 {[%clk 0:00:07]} 49. fxe4 {[%clk 0:00:15]}  Kc6 {[%clk 0:00:08]} 50. Kb2 {[%clk 0:00:15]}  Kb5 {[%clk 0:00:07]} 51. Kb3 {[%clk 0:00:14]}  Kc5 {[%clk 0:00:06]} 52. Kc3 {[%clk 0:00:15]}  Kb5 {[%clk 0:00:07]} 53. Nd2 {[%clk 0:00:14]}  Ka4 {[%clk 0:00:07]} 54. Kb2 {[%clk 0:00:09]}  b5 {[%clk 0:00:08]} 55. a3 {[%clk 0:00:09]}  b4 {[%clk 0:00:08]} 56. axb4 {[%clk 0:00:10]}  Kxb4 {[%clk 0:00:09]} 57. Kc2 {[%clk 0:00:10]}  Kb5 {[%clk 0:00:07]} 58. Kb3 {[%clk 0:00:10]}  Kc5 {[%clk 0:00:06]} 59. Kc3 {[%clk 0:00:11]}  Kb5 {[%clk 0:00:07]} 60. Kd4 {[%clk 0:00:11]}  Kb4 {[%clk 0:00:07]} 61. Nf1 {[%clk 0:00:12]}  Kb3 {[%clk 0:00:07]} 62. Kd3 {[%clk 0:00:12]}  Kb2 {[%clk 0:00:07]} 63. Ne3 {[%clk 0:00:12]}  Kc1 {[%clk 0:00:07]} 64. g3 {[%clk 0:00:13]}  Kb2 {[%clk 0:00:06]} 65. Kd2 {[%clk 0:00:13]}  Kb3 {[%clk 0:00:06]} 66. Ng4 {[%clk 0:00:14]}  Kc4 {[%clk 0:00:06]} 67. Ke3 {[%clk 0:00:14]} 1-0


[Site "https://www.chess.com"]

[Event "Titled Tuesday Blitz June 28 Early 2022"]
[White "Royal, Shreyas"]
[Black "Saito, Vinicius"]
[WhiteFideId "448869"]
[BlackFideId "2113384"]
[WhiteElo "1986"]
[BlackElo "2168"]
[Result "0-1"]
[Round "07"]
[TimeControl "180+1"]
[Date "2022.06.28"]
[WhiteClock "0:02:35"]
[BlackClock "0:01:55"]

1. d4 {[%clk 0:03:00]}  Nf6 {[%clk 0:02:57]} 2. c4 {[%clk 0:03:01]}  g6 {[%clk 0:02:57]} 3. Nc3 {[%clk 0:03:02]}  Bg7 {[%clk 0:02:57]} 4. e4 {[%clk 0:03:02]}  d6 {[%clk 0:02:58]} 5. Nge2 {[%clk 0:03:02]}  O-O {[%clk 0:02:58]} 6. Ng3 {[%clk 0:03:03]}  c5 {[%clk 0:02:56]} 7. d5 {[%clk 0:03:03]}  e6 {[%clk 0:02:56]} 8. Be2 {[%clk 0:03:03]}  exd5 {[%clk 0:02:56]} 9. cxd5 {[%clk 0:03:04]}  Na6 {[%clk 0:02:52]} 10. O-O {[%clk 0:03:04]}  Nc7 {[%clk 0:02:51]} 11. f4 {[%clk 0:03:04]}  Nd7 {[%clk 0:02:49]} 12. Re1 {[%clk 0:03:03]}  Bd4+ {[%clk 0:02:47]} 13. Kh1 {[%clk 0:03:04]}  Qh4 {[%clk 0:02:47]} 14. Qd3 {[%clk 0:03:00]}  Nf6 {[%clk 0:02:39]} 15. Be3 {[%clk 0:02:56]}  Bxe3 {[%clk 0:02:31]} 16. Qxe3 {[%clk 0:02:57]}  Re8 {[%clk 0:02:31]} 17. Rad1 {[%clk 0:02:55]}  Bg4 {[%clk 0:02:26]} 18. Bxg4 {[%clk 0:02:42]}  Nxg4 {[%clk 0:02:25]} 19. Qg1 {[%clk 0:02:43]}  Rad8 {[%clk 0:02:09]} 20. Rd3 {[%clk 0:02:41]}  b5 {[%clk 0:02:06]} 21. Rf3 {[%clk 0:02:39]}  b4 {[%clk 0:02:05]} 22. Nd1 {[%clk 0:02:38]}  Nxd5 {[%clk 0:02:00]} 23. Nf1 {[%clk 0:02:35]}  Qxe1 {[%clk 0:01:57]} 24. exd5 {[%clk 0:02:35]}  Qxd1 {[%clk 0:01:55]} 0-1


[Site "https://www.chess.com"]

[Event "Titled Tuesday Blitz June 28 Early 2022"]
[White "Sadhwani, Raunak"]
[Black "Xiong, Jeffery"]
[WhiteFideId "35093487"]
[BlackFideId "2047640"]
[WhiteElo "2616"]
[BlackElo "2714"]
[Result "0-1"]
[Round "07"]
[TimeControl "180+1"]
[Date "2022.06.28"]
[WhiteClock "0:00:02"]
[BlackClock "0:00:01"]

1. e4 {[%clk 0:03:00]}  e5 {[%clk 0:03:00]} 2. Nf3 {[%clk 0:03:00]}  Nc6 {[%clk 0:03:00]} 3. Bb5 {[%clk 0:03:01]}  Nf6 {[%clk 0:03:01]} 4. O-O {[%clk 0:03:01]}  Nxe4 {[%clk 0:03:01]} 5. Re1 {[%clk 0:03:02]}  Nd6 {[%clk 0:03:01]} 6. a4 {[%clk 0:03:01]}  a6 {[%clk 0:02:53]} 7. Bf1 {[%clk 0:03:01]}  Be7 {[%clk 0:02:52]} 8. Nc3 {[%clk 0:03:00]}  O-O {[%clk 0:02:52]} 9. d4 {[%clk 0:02:43]}  e4 {[%clk 0:02:52]} 10. Nxe4 {[%clk 0:02:43]}  Nxe4 {[%clk 0:02:52]} 11. Rxe4 {[%clk 0:02:44]}  d5 {[%clk 0:02:53]} 12. Re1 {[%clk 0:02:44]}  Bg4 {[%clk 0:02:52]} 13. c3 {[%clk 0:02:44]}  Bd6 {[%clk 0:02:50]} 14. h3 {[%clk 0:02:35]}  Bh5 {[%clk 0:02:51]} 15. a5 {[%clk 0:02:32]}  Qd7 {[%clk 0:02:50]} 16. Ne5 {[%clk 0:02:18]}  Nxe5 {[%clk 0:02:33]} 17. Qxh5 {[%clk 0:02:19]}  Ng6 {[%clk 0:02:33]} 18. g3 {[%clk 0:02:17]}  c6 {[%clk 0:02:32]} 19. h4 {[%clk 0:02:17]}  Rfe8 {[%clk 0:02:30]} 20. Bd2 {[%clk 0:02:17]}  Bc7 {[%clk 0:02:27]} 21. b4 {[%clk 0:02:14]}  Rxe1 {[%clk 0:02:19]} 22. Rxe1 {[%clk 0:02:15]}  Re8 {[%clk 0:02:20]} 23. Bd3 {[%clk 0:02:10]}  Rxe1+ {[%clk 0:02:17]} 24. Bxe1 {[%clk 0:02:11]}  Nf8 {[%clk 0:02:01]} 25. Bd2 {[%clk 0:02:11]}  Qe7 {[%clk 0:01:54]} 26. Kg2 {[%clk 0:02:09]}  Bd6 {[%clk 0:01:48]} 27. Qf5 {[%clk 0:02:08]}  Qe6 {[%clk 0:01:44]} 28. Qf3 {[%clk 0:02:08]}  g6 {[%clk 0:01:42]} 29. h5 {[%clk 0:02:08]}  Nd7 {[%clk 0:01:42]} 30. h6 {[%clk 0:02:01]}  Nf6 {[%clk 0:01:42]} 31. Qd1 {[%clk 0:01:37]}  Bf8 {[%clk 0:01:38]} 32. Bf4 {[%clk 0:01:21]}  Bd6 {[%clk 0:01:15]} 33. Qf3 {[%clk 0:00:59]}  Kf8 {[%clk 0:01:11]} 34. Bxd6+ {[%clk 0:00:48]}  Qxd6 {[%clk 0:01:11]} 35. Qe3 {[%clk 0:00:49]}  Ng8 {[%clk 0:00:54]} 36. g4 {[%clk 0:00:43]}  Ne7 {[%clk 0:00:36]} 37. f4 {[%clk 0:00:36]}  f6 {[%clk 0:00:35]} 38. g5 {[%clk 0:00:26]}  Kf7 {[%clk 0:00:36]} 39. Bc2 {[%clk 0:00:20]}  Qe6 {[%clk 0:00:35]} 40. Qxe6+ {[%clk 0:00:14]}  Kxe6 {[%clk 0:00:36]} 41. Kf3 {[%clk 0:00:14]}  Nf5 {[%clk 0:00:34]} 42. Bd3 {[%clk 0:00:08]}  Nd6 {[%clk 0:00:28]} 43. Bf1 {[%clk 0:00:05]}  Ne4 {[%clk 0:00:21]} 44. Bd3 {[%clk 0:00:06]}  f5 {[%clk 0:00:08]} 45. Ke3 {[%clk 0:00:03]}  Nxc3 {[%clk 0:00:08]} 46. Kd2 {[%clk 0:00:03]}  Na2 {[%clk 0:00:08]} 47. Bb1 {[%clk 0:00:02]}  Nxb4 {[%clk 0:00:08]} 48. Kc3 {[%clk 0:00:03]}  c5 {[%clk 0:00:09]} 49. dxc5 {[%clk 0:00:03]}  Nc6 {[%clk 0:00:10]} 50. Bd3 {[%clk 0:00:03]}  Nxa5 {[%clk 0:00:10]} 51. Kb4 {[%clk 0:00:03]}  Nc6+ {[%clk 0:00:10]} 52. Ka4 {[%clk 0:00:04]}  Nd4 {[%clk 0:00:09]} 53. Ka5 {[%clk 0:00:04]}  Kd7 {[%clk 0:00:06]} 54. Kb6 {[%clk 0:00:04]}  a5 {[%clk 0:00:04]} 55. Kxb7 {[%clk 0:00:01]}  a4 {[%clk 0:00:04]} 56. Bb1 {[%clk 0:00:02]}  Ne6 {[%clk 0:00:03]} 57. c6+ {[%clk 0:00:02]}  Kd6 {[%clk 0:00:04]} 58. Kb6 {[%clk 0:00:02]}  a3 {[%clk 0:00:02]} 59. Ba2 {[%clk 0:00:03]}  Nc7 {[%clk 0:00:02]} 60. Bb1 {[%clk 0:00:02]}  d4 {[%clk 0:00:02]} 61. Bxf5 {[%clk 0:00:02]}  a2 {[%clk 0:00:01]} 0-1


[Site "https://www.chess.com"]

[Event "Titled Tuesday Blitz June 28 Early 2022"]
[White "Sadubayev, Airat"]
[Black "Rosenberg, Evan S"]
[WhiteFideId "13713264"]
[BlackFideId "2019299"]
[WhiteElo "2230"]
[BlackElo "2164"]
[Result "0-1"]
[Round "07"]
[TimeControl "180+1"]
[Date "2022.06.28"]
[WhiteClock "0:00:01"]
[BlackClock "0:00:06"]

1. d4 {[%clk 0:02:51]}  Nf6 {[%clk 0:02:59]} 2. c4 {[%clk 0:02:50]}  e6 {[%clk 0:02:59]} 3. Nc3 {[%clk 0:02:49]}  Bb4 {[%clk 0:02:59]} 4. Nf3 {[%clk 0:02:46]}  d5 {[%clk 0:02:51]} 5. Bg5 {[%clk 0:02:42]}  h6 {[%clk 0:02:49]} 6. Bh4 {[%clk 0:02:40]}  dxc4 {[%clk 0:02:48]} 7. e3 {[%clk 0:02:39]}  b5 {[%clk 0:02:48]} 8. Qc2 {[%clk 0:02:31]}  a6 {[%clk 0:02:45]} 9. g3 {[%clk 0:02:25]}  Bb7 {[%clk 0:02:44]} 10. Bg2 {[%clk 0:02:21]}  g5 {[%clk 0:02:42]} 11. O-O {[%clk 0:02:16]}  gxh4 {[%clk 0:02:40]} 12. Nxh4 {[%clk 0:02:16]}  Bxg2 {[%clk 0:02:39]} 13. Nxg2 {[%clk 0:02:15]}  Nc6 {[%clk 0:02:20]} 14. Ne4 {[%clk 0:02:13]}  Nxe4 {[%clk 0:02:19]} 15. Qxe4 {[%clk 0:02:12]}  Qd5 {[%clk 0:02:19]} 16. Qf4 {[%clk 0:02:07]}  O-O-O {[%clk 0:02:02]} 17. a3 {[%clk 0:02:01]}  Bd6 {[%clk 0:02:02]} 18. Qf6 {[%clk 0:01:51]}  Qf5 {[%clk 0:01:53]} 19. Qxf5 {[%clk 0:01:43]}  exf5 {[%clk 0:01:54]} 20. Rac1 {[%clk 0:01:42]}  Na5 {[%clk 0:01:48]} 21. Nh4 {[%clk 0:01:37]}  f4 {[%clk 0:01:48]} 22. gxf4 {[%clk 0:01:33]}  Rhg8+ {[%clk 0:01:47]} 23. Kh1 {[%clk 0:01:31]}  Nb3 {[%clk 0:01:44]} 24. Rc3 {[%clk 0:01:28]}  Nd2 {[%clk 0:01:42]} 25. Rd1 {[%clk 0:01:25]}  Ne4 {[%clk 0:01:38]} 26. Rc2 {[%clk 0:01:21]}  c5 {[%clk 0:01:02]} 27. d5 {[%clk 0:01:21]}  c3 {[%clk 0:00:50]} 28. f3 {[%clk 0:01:20]}  Nd2 {[%clk 0:00:33]} 29. Rxc3 {[%clk 0:01:16]}  Nc4 {[%clk 0:00:28]} 30. Rb1 {[%clk 0:00:50]}  Rde8 {[%clk 0:00:22]} 31. Ng2 {[%clk 0:00:46]}  Rxg2 {[%clk 0:00:18]} 32. Kxg2 {[%clk 0:00:43]}  Nxe3+ {[%clk 0:00:19]} 33. Kf2 {[%clk 0:00:41]}  Nxd5 {[%clk 0:00:19]} 34. Rd3 {[%clk 0:00:39]}  Bxf4 {[%clk 0:00:06]} 35. Rxd5 {[%clk 0:00:38]}  Be3+ {[%clk 0:00:07]} 36. Kg3 {[%clk 0:00:35]}  Rg8+ {[%clk 0:00:06]} 37. Kh3 {[%clk 0:00:32]}  Bd4 {[%clk 0:00:05]} 38. b4 {[%clk 0:00:29]}  Kc7 {[%clk 0:00:02]} 39. bxc5 {[%clk 0:00:27]}  Bc3 {[%clk 0:00:02]} 40. Rbd1 {[%clk 0:00:23]}  Kc6 {[%clk 0:00:01]} 41. Rf5 {[%clk 0:00:17]}  f6 {[%clk 0:00:01]} 42. Rd6+ {[%clk 0:00:14]}  Kc7 {[%clk 0:00:02]} 43. Rxa6 {[%clk 0:00:13]}  Rg1 {[%clk 0:00:02]} 44. Rd5 {[%clk 0:00:11]}  Rf1 {[%clk 0:00:01]} 45. Kg2 {[%clk 0:00:11]}  Re1 {[%clk 0:00:01]} 46. Rh5 {[%clk 0:00:09]}  Be5 {[%clk 0:00:01]} 47. Rxh6 {[%clk 0:00:08]}  Re2+ {[%clk 0:00:02]} 48. Kh1 {[%clk 0:00:06]}  Re1+ {[%clk 0:00:02]} 49. Kg2 {[%clk 0:00:07]}  Re2+ {[%clk 0:00:03]} 50. Kf1 {[%clk 0:00:06]}  Rc2 {[%clk 0:00:03]} 51. Ra7+ {[%clk 0:00:05]}  Kb8 {[%clk 0:00:03]} 52. Rf7 {[%clk 0:00:04]}  Rxc5 {[%clk 0:00:03]} 53. Rh8+ {[%clk 0:00:03]}  Rc8 {[%clk 0:00:04]} 54. Rxc8+ {[%clk 0:00:03]}  Kxc8 {[%clk 0:00:05]} 55. h4 {[%clk 0:00:03]}  Kd8 {[%clk 0:00:05]} 56. h5 {[%clk 0:00:02]}  Ke8 {[%clk 0:00:06]} 57. Rb7 {[%clk 0:00:02]}  Kf8 {[%clk 0:00:06]} 58. Rxb5 {[%clk 0:00:01]}  Kg7 {[%clk 0:00:06]} 0-1


[Site "https://www.chess.com"]